bitfinex/quotes_ETHUSD_20250930
["timestamp","ask_amount","ask_price","bid_price","bid_amount"]
[1759221961775,5.8457,4179.2,4179.1,1e-08]
[1759221962372,5.8457,4179.2,4179.1,0.69770001]
[1759221963962,5.7957,4179.2,4179.1,0.69770001]
[1759221965084,5.7957,4179.2,4179.1,0.24310001]
[1759221965283,5.7957,4179.2,4179.1,0.69770001]
[1759221965458,5.7957,4179.2,4179.1,0.24310001]
[1759221965868,5.7957,4179.2,4179.1,0.69770001]
[1759221967177,3.0977,4179.2,4179.1,2.22967001]
[1759221967689,2.4,4179.2,4179.1,2.22967001]
[1759221968270,2.4,4179.2,4179.1,0.69770001]
[1759221968697,2.4,4179.2,4179.1,15.19770001]
[1759221971615,2.4,4179.2,4179.1,0.69770001]
[1759221971916,2.4,4179.2,4179.1,0.24040001]
[1759221972217,2.4,4179.2,4179.1,14.74040001]
[1759221972617,2.4,4179.2,4179.1,15.21250001]
[1759221973923,2.4,4179.2,4179.1,17.60535971]
[1759221975024,2.4,4179.2,4179.1,3.10535971]
[1759221975516,2.4,4179.2,4179.1,17.60535971]
[1759221978223,0.7196255,4179.6,4179.1,15.21250001]
[1759221978429,2.4,4179.6,4179.2,3.10485172]
[1759221978626,2.4,4179.6,4179.5,0.12]
[1759221980332,5.46887345,4179.6,4179.5,0.12]
[1759221980528,5.93757345,4179.6,4179.5,14.62]
[1759221981025,5.93757345,4179.6,4179.5,0.12]
[1759221982829,3.545,4179.6,4179.5,0.12]
[1759221983428,5.93757345,4179.6,4179.5,0.12]
[1759221983830,3.545,4179.6,4179.5,0.12]
[1759221984219,5.93757345,4179.6,4179.5,0.12]
[1759221984705,3.545,4179.6,4179.5,0.12]
[1759221985706,5.93757345,4179.6,4179.5,0.12]
[1759221986341,3.545,4179.6,4179.5,0.12]
[1759221986906,7.04516974,4179.6,4179.5,0.12]
[1759221987110,2.39280245,4179.2,4179.1,1e-08]
[1759221987322,12.94537462,4179.2,4179.1,1e-08]
[1759221987506,13.45980805,4179.2,4179.1,1e-08]
[1759221987712,15.81734785,4179.2,4179.1,1e-08]
[1759221992211,15.30291442,4179.2,4179.1,1e-08]
[1759221993868,2.3933073,4178.4,4178.1,0.17540001]
[1759221994162,4.7933073,4178.4,4178.1,0.17540001]
[1759221994533,0.71990007,4178.3,4178.2,14.5]
[1759221994984,0.71990007,4178.3,4178.2,14.9687]
[1759221995737,0.71990007,4178.3,4178.2,14.5]
[1759221997140,0.71990007,4178.3,4178.2,14.62]
[1759221998765,0.71990007,4178.3,4178.2,15.0887]
[1759221999064,2.39286385,4179.1,4178.3,2.39326233]
[1759221999258,5.13586385,4179.1,4178.4,0.6649]
[1759221999456,0.71979816,4178.5,4178.4,0.1962]
[1759221999652,0.71979816,4178.5,4178.4,0.12]
[1759222000063,0.71979816,4178.5,4178.4,0.5644]
[1759222000270,0.71979816,4178.5,4178.4,0.7606]
[1759222000564,4.67430862,4179.0,4178.4,3.15386057]
[1759222000767,4.79286451,4179.1,4178.5,0.6406]
[1759222000970,0.71977053,4178.8,4178.6,0.4444]
[1759222001170,0.71977053,4178.8,4178.7,0.1962]
[1759222001357,0.71977053,4178.8,4178.7,0.3162]
[1759222001670,0.71977053,4178.8,4178.7,0.7606]
[1759222001842,0.71977053,4178.8,4178.7,3.69892816]
[1759222002241,0.71977053,4178.8,4178.7,1.30583941]
[1759222002490,2.4,4179.1,4178.7,0.12]
[1759222002770,2.4,4179.1,4179.0,0.12]
[1759222003158,2.8444,4179.1,4179.0,14.62]
[1759222004547,0.4444,4179.1,4179.0,15.2606]
[1759222004874,0.4444,4179.1,4179.0,15.0644]
[1759222005665,0.4444,4179.1,4179.0,15.2606]
[1759222006678,0.4444,4179.1,4179.0,15.0644]
[1759222009178,0.4444,4179.1,4179.0,17.06700637]
[1759222009377,0.001,4179.6,4179.1,2.39284381]
[1759222009580,0.7206255,4179.6,4179.2,2.743]
[1759222009872,0.7206255,4179.6,4179.2,3.1874]
[1759222010074,0.7206255,4179.6,4179.3,14.5]
[1759222010765,2.39358595,4179.6,4179.3,14.5]
[1759222011570,2.39358595,4179.6,4179.3,17.242]
[1759222011571,2.4,4179.4,4179.3,17.242]
[1759222011874,3.0947,4179.4,4179.3,17.242]
[1759222012586,0.7196842,4179.5,4179.3,17.242]
[1759222013284,2.4,4179.4,4179.3,17.242]
[1759222013684,0.36203905,4179.4,4178.1,0.002]
[1759222013892,2.4,4178.9,4178.2,2.9382]
[1759222014094,2.4,4178.9,4178.4,2.39325082]
[1759222014387,2.4,4178.9,4178.5,17.242]
[1759222014591,0.6947,4178.9,4178.5,17.242]
[1759222014884,2.6416,4179.1,4178.5,14.5]
[1759222015186,3.0947,4179.1,4178.6,2.742]
[1759222015392,0.6947,4179.0,4178.6,2.742]
[1759222015688,0.6947,4178.9,4178.6,2.742]
[1759222015997,0.6947,4178.9,4178.7,14.5]
[1759222016360,5.51254422,4179.2,4178.7,14.5]
[1759222016558,0.6947,4179.1,4178.7,14.5]
[1759222016752,0.6947,4179.1,4178.8,2.742]
[1759222016982,0.6947,4179.0,4178.8,2.742]
[1759222017388,0.2416,4179.0,4178.9,14.5]
[1759222018390,0.6947,4179.0,4178.9,14.5]
[1759222019486,6.20724422,4179.2,4178.9,14.62]
[1759222019667,0.6947,4179.1,4178.9,14.62]
[1759222020086,3.11972736,4179.2,4178.9,14.62]
[1759222020260,6.20723702,4179.2,4178.9,17.362]
[1759222020460,5.51253702,4179.2,4178.9,17.362]
[1759222020654,0.6947,4179.1,4178.9,17.362]
[1759222021995,0.2416,4179.1,4178.9,17.362]
[1759222022201,0.4531,4179.0,4178.9,17.362]
[1759222022497,0.6947,4179.0,4178.9,17.362]
[1759222022793,2.39287043,4179.1,4178.9,14.62]
[1759222022994,0.6947,4179.0,4178.9,17.362]
[1759222023197,5.51254396,4179.2,4178.9,17.362]
[1759222023492,6.20724396,4179.2,4178.9,17.362]
[1759222023693,2.3928657,4179.1,4178.9,17.362]
[1759222023862,2.8459657,4179.1,4178.9,17.362]
[1759222024063,0.4531,4179.1,4178.9,17.362]
[1759222024264,2.84596779,4179.1,4178.9,17.362]
[1759222024475,3.08756779,4179.1,4178.9,17.362]
[1759222024676,0.6947,4179.1,4178.9,17.362]
[1759222025397,3.08759585,4179.1,4178.9,17.362]
[1759222025761,10.16192558,4179.0,4178.9,14.62]
[1759222026094,10.16192558,4179.0,4178.9,17.361]
[1759222026403,2.4,4179.0,4178.9,17.361]
[1759222028294,2.8531,4179.0,4178.9,17.361]
[1759222028472,2.8531,4179.0,4178.9,2.861]
[1759222028681,2.4,4179.0,4178.9,2.861]
[1759222028884,3.72976397,4179.0,4178.9,2.861]
[1759222029196,6.57578093,4179.0,4178.9,2.861]
[1759222030017,7.29553765,4179.0,4178.9,2.861]
[1759222030220,6.57578093,4179.0,4178.9,2.861]
[1759222033711,4.18286397,4179.0,4178.9,2.861]
[1759222033917,3.94126397,4179.0,4178.9,2.861]
[1759222034101,3.48816397,4179.0,4178.9,2.861]
[1759222034688,3.48816397,4179.0,4178.9,0.12]
[1759222034986,3.48816397,4179.0,4178.9,2.861]
[1759222035221,5.88108093,4179.0,4178.9,2.861]
[1759222035584,6.35448093,4179.0,4178.9,2.861]
[1759222036119,6.59978093,4179.0,4178.9,2.861]
[1759222036994,4.20686397,4179.0,4178.9,2.861]
[1759222037421,5.88108093,4179.0,4178.9,2.861]
[1759222037622,6.59978093,4179.0,4178.9,2.861]
[1759222039548,3.48816397,4179.0,4178.9,2.861]
[1759222039697,2.4,4179.0,4178.9,2.861]
[1759222040392,2.4,4179.0,4178.9,3.4849]
[1759222041232,2.4,4179.0,4178.9,5.87787422]
[1759222041436,2.4,4179.0,4178.9,3.4849]
[1759222042096,2.4,4179.0,4178.9,2.861]
[1759222043136,2.4,4179.0,4178.9,17.361]
[1759222044547,2.4,4179.0,4178.9,14.62]
[1759222044747,2.4,4179.0,4178.9,17.36]
[1759222044948,2.4,4179.0,4178.9,2.86]
[1759222045153,3.1187,4179.0,4178.9,2.86]
[1759222045530,2.4,4179.0,4178.9,2.86]
[1759222046829,3.1187,4179.0,4178.9,2.86]
[1759222047161,3.89800086,4179.0,4178.9,2.86]
[1759222047531,6.29091782,4179.0,4178.9,2.86]
[1759222048664,6.29091782,4179.0,4178.9,0.12]
[1759222048841,6.29091782,4179.0,4178.9,2.86]
[1759222049238,6.29191782,4179.0,4178.9,2.86]
[1759222049645,5.51261696,4179.0,4178.9,2.86]
[1759222050569,5.51261696,4179.0,4178.9,0.12]
[1759222050862,2.4,4178.9,4178.1,0.002]
[1759222051163,7.06768375,4178.2,4178.1,0.002]
[1759222051362,7.06768375,4178.2,4178.1,0.122]
[1759222051762,7.79300862,4178.2,4178.1,0.122]
[1759222053866,2.4,4178.2,4178.1,0.122]
[1759222054265,5.51207513,4178.2,4178.1,0.122]
[1759222054472,11.27700105,4178.2,4178.1,0.002]
[1759222054640,11.99692531,4178.2,4178.1,0.002]
[1759222055439,9.60355018,4178.2,4178.1,0.002]
[1759222055638,3.11992426,4178.2,4178.1,0.002]
[1759222055859,2.4,4178.2,4178.1,0.7459]
[1759222056549,5.51292479,4178.7,4178.1,0.5497]
[1759222056862,2.4,4178.6,4178.2,2.739]
[1759222057051,3.11292479,4178.7,4178.4,0.12]
[1759222057970,3.83162479,4178.7,4178.4,0.12]
[1759222058137,2.39315197,4178.6,4178.4,0.12]
[1759222058334,2.4,4178.5,4178.4,0.12]
[1759222058575,2.4,4178.5,4178.4,14.62]
[1759222060752,4.79315197,4178.6,4178.4,14.62]
[1759222060952,2.4,4178.6,4178.4,14.62]
[1759222061969,0.001,4179.0,4178.5,0.6267]
[1759222062140,0.7207619,4179.0,4178.6,3.3657]
[1759222062341,0.7207619,4179.0,4178.8,0.12]
[1759222062752,0.001,4179.0,4178.8,0.12]
[1759222064043,0.001,4179.0,4178.9,3.4857]
[1759222064973,0.001,4179.0,4178.9,3.2895]
[1759222066540,0.001,4179.0,4178.9,2.859]
[1759222067274,0.001,4179.0,4178.9,17.359]
[1759222068957,0.001,4179.0,4178.9,19.75197422]
[1759222069144,0.001,4179.0,4178.9,20.37867422]
[1759222070677,0.001,4179.0,4178.9,5.87867422]
[1759222071181,0.001,4179.0,4178.9,20.37867422]
[1759222072599,0.001,4179.0,4178.9,21.17067422]
[1759222073467,0.001,4179.0,4178.9,23.57067422]
[1759222073946,0.001,4179.0,4178.9,23.66659253]
[1759222074881,0.001,4179.7,4179.6,3.18457345]
[1759222075177,0.001,4180.6,4179.6,3.18457345]
[1759222075178,0.001,4180.6,4180.3,3.18417281]
[1759222075381,0.001,4180.6,4180.3,5.94609453]
[1759222075566,0.001,4180.6,4180.3,21.88270768]
[1759222077279,0.001,4180.9,4180.8,3.18388672]
[1759222077470,0.001,4180.9,4180.8,5.92088672]
[1759222077683,0.001,4180.9,4180.8,6.54758672]
[1759222078066,0.001,4180.9,4180.8,21.04758672]
[1759222078266,0.001,4180.9,4180.8,22.02015822]
[1759222079293,0.001,4180.9,4180.8,22.50447613]
[1759222081105,0.001,4181.1,4181.0,3.1837723]
[1759222081106,1e-08,4181.1,4181.0,3.1837723]
[1759222081301,1e-08,4181.1,4181.0,8.34369002]
[1759222081507,1e-08,4181.1,4181.0,8.3197723]
[1759222081801,1e-08,4181.1,4181.0,24.28030717]
[1759222083697,1e-08,4181.1,4181.0,21.54430717]
[1759222084004,1e-08,4181.1,4181.0,24.28030717]
[1759222084902,1e-08,4181.1,4181.0,24.34950717]
[1759222085911,1e-08,4181.1,4181.0,24.23030717]
[1759222086095,1e-08,4181.1,4181.0,24.34950717]
[1759222086413,0.001,4182.0,4181.5,3.1834863]
[1759222086612,0.001,4182.0,4181.5,6.59619156]
[1759222086907,0.001,4182.0,4181.5,7.22289156]
[1759222087121,0.001,4182.0,4181.5,21.72289156]
[1759222088009,0.001,4182.0,4181.5,21.09519156]
[1759222088409,0.09586751,4182.6,4182.5,2.39091452]
[1759222088608,0.2418,4182.8,4182.6,2.39085736]
[1759222088904,0.2418,4182.8,4182.7,5.1497082]
[1759222089211,0.2418,4182.8,4182.7,19.6258002]
[1759222089693,0.001,4182.8,4182.7,20.4178002]
[1759222089901,0.001,4182.8,4182.7,20.5370002]
[1759222090104,0.001,4182.8,4182.7,21.37083507]
[1759222093935,0.2407,4182.8,4182.7,21.37083507]
[1759222096442,0.001,4182.8,4182.7,21.37083507]
[1759222097636,0.2317,4182.8,4182.7,21.37083507]
[1759222098614,0.7046,4182.8,4182.7,18.63583507]
[1759222098942,0.7046,4182.8,4182.7,20.5360002]
[1759222099636,0.7046,4182.8,4182.7,17.8020002]
[1759222099809,0.7046,4182.8,4182.7,20.5360002]
[1759222101257,0.7046,4182.8,4182.7,18.1452]
[1759222101455,0.7046,4182.8,4182.7,14.6192]
[1759222101857,0.7046,4182.8,4182.7,17.3532]
[1759222102033,1.31589396,4182.8,4182.7,17.3532]
[1759222102958,0.7046,4182.8,4182.7,17.3532]
[1759222103272,0.7046,4182.8,4182.7,2.8532]
[1759222103645,0.001,4182.8,4182.7,19.7440002]
[1759222103855,0.7046,4182.8,4182.7,17.3532]
[1759222104670,0.7046,4182.8,4182.7,17.3522]
[1759222105334,0.7046,4182.8,4182.7,19.7430002]
[1759222108098,0.001,4182.8,4182.7,19.6238002]
[1759222108398,0.001,4182.8,4182.7,19.7430002]
[1759222108557,0.2317,4182.8,4182.7,19.7430002]
[1759222108762,0.001,4182.8,4182.7,19.7430002]
[1759222111766,0.7046,4182.8,4182.7,19.7430002]
[1759222113462,0.7046,4182.8,4182.7,17.3522]
[1759222114783,8.50368264,4182.8,4182.7,14.5]
[1759222114975,2.4,4182.7,4182.0,2.733]
[1759222115172,5.4083396,4182.2,4181.4,3.11051315]
[1759222115396,3.1036,4182.1,4181.5,17.233]
[1759222115691,3.82278042,4182.1,4181.6,2.733]
[1759222115882,0.7036,4182.0,4181.6,2.733]
[1759222116085,0.7036,4181.9,4181.5,14.5]
[1759222116284,0.7036,4181.8,4181.6,2.733]
[1759222116782,0.7036,4181.7,4181.6,2.733]
[1759222117258,1.42278042,4181.7,4181.6,2.733]
[1759222118278,1.42278042,4181.7,4181.5,14.5]
[1759222118485,0.71918042,4181.7,4181.6,2.733]
[1759222119072,0.71918042,4181.7,4181.5,14.5]
[1759222119073,2.39142911,4181.6,4181.5,14.5]
[1759222119275,5.49502911,4181.6,4181.5,14.5]
[1759222119675,5.49502911,4181.6,4181.5,17.233]
[1759222120378,10.16258594,4181.6,4181.5,17.233]
[1759222120784,10.16258594,4181.6,4181.5,14.5]
[1759222120991,10.16258594,4181.6,4181.5,17.233]
[1759222121295,0.71918042,4181.7,4181.5,17.233]
[1759222121992,0.94728042,4181.7,4181.5,17.233]
[1759222122177,0.94728042,4181.7,4181.6,0.002]
[1759222122597,1.41118042,4181.7,4181.6,0.002]
[1759222122805,1.41118042,4181.7,4181.6,2.735]
[1759222123010,6.07873725,4181.7,4181.6,2.735]
[1759222123207,6.07873725,4181.7,4181.6,0.002]
[1759222123381,6.07873725,4181.7,4181.6,2.735]
[1759222124300,5.38673725,4181.7,4181.6,2.735]
[1759222124506,0.71918042,4181.7,4181.6,2.735]
[1759222124714,5.38673725,4181.7,4181.6,2.735]
[1759222124901,5.61483725,4181.7,4181.6,2.8542]
[1759222126828,5.61483725,4181.7,4181.6,17.3542]
[1759222129790,5.38673725,4181.7,4181.6,17.3542]
[1759222131030,4.66755683,4181.7,4181.6,17.3542]
[1759222132410,4.66755683,4181.7,4181.6,2.8542]
[1759222132806,4.66755683,4181.7,4181.6,17.3542]
[1759222134640,2.4,4181.9,4181.6,17.3542]
[1759222134844,2.4,4181.9,4181.6,19.94182035]
[1759222135138,2.4,4181.9,4181.6,19.74562035]
[1759222135708,2.4,4181.9,4181.6,17.3542]
[1759222135930,2.6281,4181.9,4181.6,17.3542]
[1759222136137,4.66755683,4181.7,4181.6,17.3542]
[1759222137641,4.89565683,4181.7,4181.6,17.3542]
[1759222138057,4.66755683,4181.7,4181.6,17.3542]
[1759222138625,2.39064006,4183.0,4181.9,2.39123966]
[1759222138953,4.66755683,4182.3,4182.0,2.733]
[1759222139352,3.092,4182.2,4182.0,2.733]
[1759222139742,0.692,4182.1,4182.0,2.733]
[1759222140262,0.692,4182.1,4182.0,2.8522]
[1759222141627,7.75955683,4182.1,4182.0,2.8522]
[1759222142235,0.001,4182.5,4182.0,2.8522]
[1759222142433,4.66755683,4182.4,4182.2,2.39108091]
[1759222142725,4.66755683,4182.4,4182.3,2.8522]
[1759222142921,7.06755683,4182.4,4182.3,2.8522]
[1759222143354,7.06755683,4182.4,4182.3,17.3522]
[1759222146038,7.06755683,4182.4,4182.3,19.74322885]
[1759222146039,2.4,4182.4,4182.3,19.74322885]
[1759222146245,0.001,4182.5,4182.3,20.41392885]
[1759222146447,0.001,4182.5,4182.4,3.85367169]
[1759222146739,0.001,4182.5,4182.4,3.8775814]
[1759222146961,0.001,4182.5,4182.4,3.85367169]
[1759222148369,0.001,4182.5,4182.4,18.35367169]
[1759222150470,0.001,4182.5,4182.4,16.89097169]
[1759222150668,0.001,4182.5,4182.4,19.62297169]
[1759222151471,0.001,4182.5,4182.4,14.5]
[1759222151775,0.6762,4182.5,4182.4,17.232]
[1759222152150,0.6762,4182.5,4182.4,14.5]
[1759222152352,0.6762,4182.5,4182.4,19.62297169]
[1759222152848,0.6762,4182.5,4182.4,14.5]
[1759222153055,0.6762,4182.5,4182.4,17.232]
[1759222155278,0.2288,4182.5,4182.4,19.62297169]
[1759222155481,0.001,4182.5,4182.4,19.62297169]
[1759222158876,0.001,4182.5,4182.4,20.05977169]
[1759222159081,0.001,4182.5,4182.4,20.25597169]
[1759222160688,0.001,4182.5,4182.4,19.81917169]
[1759222160864,0.001,4182.5,4182.4,19.62297169]
[1759222161392,0.001,4182.5,4182.4,5.12297169]
[1759222161692,0.001,4182.5,4182.4,5.24217169]
[1759222161888,0.001,4182.5,4182.4,19.74217169]
[1759222162090,0.001,4182.5,4182.4,14.6192]
[1759222162283,0.6883,4182.5,4182.4,17.3502]
[1759222162990,0.6883,4182.5,4182.4,0.1192]
[1759222163291,4.7909741,4182.4,4182.2,0.598]
[1759222163493,4.7909741,4182.4,4182.2,0.1192]
[1759222163494,0.6873,4182.3,4182.2,0.1192]
[1759222163695,7.75485683,4182.3,4182.2,0.1192]
[1759222164669,10.14588568,4182.3,4182.2,0.1192]
[1759222164881,7.75485683,4182.3,4182.2,0.1192]
[1759222165564,10.14588568,4182.3,4182.2,0.1192]
[1759222165764,2.39120025,4182.1,4181.6,14.502]
[1759222166000,4.66755683,4181.7,4181.6,14.502]
[1759222166205,4.66755683,4181.7,4181.6,17.3522]
[1759222166364,5.35485683,4181.7,4181.6,17.3522]
[1759222166765,4.90635683,4182.2,4181.6,14.6212]
[1759222166995,7.30635683,4182.2,4182.1,0.1192]
[1759222167198,7.30635683,4182.2,4182.1,2.8502]
[1759222167386,7.75485683,4182.2,4182.1,2.8502]
[1759222167792,7.75485683,4182.2,4182.1,0.1192]
[1759222167985,7.75485683,4182.2,4182.1,2.8502]
[1759222169389,7.30635683,4182.2,4182.1,2.8502]
[1759222169994,10.14594286,4182.2,4182.1,0.1192]
[1759222170198,8.72469005,4182.2,4182.1,0.1192]
[1759222171288,7.75485683,4182.2,4182.1,0.1192]
[1759222172186,10.14594286,4182.2,4182.1,0.1192]
[1759222173781,10.14594286,4182.2,4181.6,14.502]
[1759222173782,4.7911634,4182.1,4181.6,14.502]
[1759222173983,2.4,4181.8,4181.7,2.731]
[1759222174184,2.6388,4181.8,4181.7,2.731]
[1759222174781,2.4,4181.8,4181.7,2.731]
[1759222175188,4.66755683,4181.8,4181.7,2.731]
[1759222177019,7.74618463,4181.8,4181.6,14.502]
[1759222177218,7.05888463,4181.8,4181.7,2.731]
[1759222177618,4.66755683,4181.8,4181.7,2.731]
[1759222177790,5.35485683,4181.8,4181.7,2.731]
[1759222178817,7.74617157,4181.8,4181.7,2.731]
[1759222179020,5.35485683,4181.8,4181.7,2.731]
[1759222180333,0.6873,4181.8,4181.7,2.731]
[1759222180693,5.40041611,4181.9,4181.7,17.231]
[1759222181092,0.2472,4181.8,4181.7,17.231]
[1759222181655,3.09151474,4181.8,4181.7,14.5]
[1759222181921,3.09151474,4181.8,4181.7,17.231]
[1759222182314,0.7002,4181.8,4181.7,17.231]
[1759222183716,3.09151474,4181.8,4181.7,17.231]
[1759222184019,0.7002,4181.8,4181.7,17.3502]
[1759222184195,5.40041611,4181.9,4181.7,17.3502]
[1759222185628,7.79167547,4181.9,4181.7,17.3502]
[1759222185928,0.2472,4181.8,4181.7,17.3502]
[1759222186308,5.85341611,4181.9,4181.7,17.3502]
[1759222186504,6.10061611,4181.9,4181.7,17.3502]
[1759222191330,5.64761611,4181.9,4181.7,17.3502]
[1759222192664,8.03889482,4181.9,4181.7,17.3502]
[1759222192870,4.79131474,4181.8,4181.7,17.3502]
[1759222193166,2.6472,4181.8,4181.7,17.3502]
[1759222193824,3.1002,4181.8,4181.7,14.6192]
[1759222194210,5.49151474,4181.8,4181.7,17.3502]
[1759222194465,3.1002,4181.8,4181.7,17.3502]
[1759222195061,2.6472,4181.8,4181.7,17.3502]
[1759222195570,0.2472,4181.8,4181.7,17.3502]
[1759222196742,2.4,4181.9,4181.7,17.3502]
[1759222196930,2.6472,4181.9,4181.7,17.3502]
[1759222197988,0.001,4182.0,4181.7,17.3502]
[1759222198497,2.39221187,4182.0,4181.7,17.3502]
[1759222199214,2.4,4181.9,4181.7,17.3502]
[1759222199692,2.63848646,4181.9,4181.7,17.3502]
[1759222200293,2.63851474,4181.8,4181.7,0.1192]
[1759222200501,3.1002,4181.8,4181.7,2.8502]
[1759222201203,2.6472,4181.8,4181.7,2.8502]
[1759222202304,2.4,4181.8,4181.7,2.8502]
[1759222203178,0.001,4182.0,4181.7,3.5042]
[1759222203396,0.001,4182.0,4181.8,0.654]
[1759222203603,0.001,4182.0,4181.9,2.73]
[1759222204506,0.001,4182.0,4181.9,3.384]
[1759222205093,0.001,4182.0,4181.9,2.73]
[1759222206545,0.001,4182.0,4181.9,17.23]
[1759222207246,5.99633717,4182.0,4181.9,14.5]
[1759222207397,3.1012,4182.0,4181.8,2.73]
[1759222207600,3.09145756,4181.9,4181.8,2.73]
[1759222207897,3.09145756,4181.9,4181.7,17.3492]
[1759222208098,0.7002,4181.8,4181.7,14.6192]
[1759222208299,0.7002,4181.8,4181.7,17.3492]
[1759222208514,0.2472,4181.8,4181.7,17.3492]
[1759222209024,5.49240816,4182.0,4181.7,17.3492]
[1759222209241,0.2472,4181.9,4181.7,14.6192]
[1759222209607,2.854,4182.0,4181.7,17.3492]
[1759222209608,4.7922012,4182.0,4181.7,17.3492]
[1759222209918,0.2328,4181.8,4181.7,17.3492]
[1759222210120,0.2328,4181.8,4181.7,14.6192]
[1759222210323,0.2328,4181.8,4181.7,17.3492]
[1759222210726,2.39131474,4181.8,4181.7,14.6192]
[1759222211032,2.4,4181.7,4181.6,0.002]
[1759222211329,0.78773452,4181.8,4181.6,0.002]
[1759222211506,7.52128433,4181.9,4181.6,0.002]
[1759222211902,2.39131565,4181.8,4181.6,0.002]
[1759222214638,2.4,4181.7,4181.6,0.002]
[1759222214822,2.39137193,4181.7,4181.6,0.002]
[1759222215237,0.2328,4181.8,4181.6,0.002]
[1759222215630,2.39137193,4181.7,4181.6,0.002]
[1759222215836,2.62417193,4181.7,4181.6,0.002]
[1759222216033,2.62406982,4181.9,4181.6,0.002]
[1759222216237,2.4,4181.7,4181.6,0.002]
[1759222217544,0.2328,4181.8,4181.6,0.002]
[1759222219145,2.4,4181.7,4181.6,0.002]
[1759222219654,3.07367193,4181.7,4181.6,0.002]
[1759222219824,3.86154856,4181.7,4181.6,0.002]
[1759222220854,11.66196467,4181.7,4181.6,0.1212]
[1759222221028,11.66196467,4181.7,4181.6,0.002]
[1759222221225,14.39196467,4181.7,4181.6,0.002]
[1759222221464,14.90779186,4181.7,4181.6,0.002]
[1759222222024,15.00370994,4181.7,4181.6,0.002]
[1759222225153,14.48788275,4181.7,4181.6,0.002]
[1759222225561,15.00297315,4181.7,4181.6,0.002]
[1759222231249,14.48788275,4181.7,4181.6,0.002]
[1759222234033,2.39160069,4181.3,4181.2,0.002]
[1759222234236,13.75852905,4181.3,4181.2,0.002]
[1759222234437,14.44082905,4181.3,4181.2,0.002]
[1759222234835,14.5367584,4181.3,4181.2,0.002]
[1759222238369,2.39223003,4180.2,4179.2,0.1962]
[1759222238566,13.16086914,4180.2,4179.5,0.4512]
[1759222238867,13.39436914,4180.2,4179.6,0.1962]
[1759222239067,13.84556914,4180.2,4179.6,0.1962]
[1759222239468,13.61206914,4180.2,4179.6,0.1962]
[1759222240254,13.61206914,4180.2,4179.7,0.1962]
[1759222242492,12.88347089,4180.2,4179.7,0.1962]
[1759222244210,2.39282412,4179.2,4178.4,2.39324584]
[1759222244376,2.39282412,4179.2,4178.5,0.36751395]
[1759222244872,2.4,4179.5,4178.5,0.36751395]
[1759222245079,2.39286127,4179.1,4178.5,0.36751395]
[1759222245307,2.39286127,4179.1,4178.7,14.5]
[1759222245509,2.4,4179.5,4178.8,1.43889242]
[1759222245724,2.39149107,4181.5,4178.9,0.02392974]
[1759222245725,2.4,4179.9,4178.9,0.02392974]
[1759222246004,2.39250358,4179.8,4179.0,2.39289562]
[1759222246311,2.39250358,4179.8,4179.1,0.0908]
[1759222246686,2.39216722,4180.4,4179.2,0.792]
[1759222247012,0.71954956,4180.2,4179.5,2.39261896]
[1759222247206,0.71954956,4180.2,4179.6,14.8391419]
[1759222247414,2.39217409,4180.3,4179.7,0.0908]
[1759222247709,4.67181786,4180.5,4179.7,0.0908]
[1759222247890,2.39212422,4180.4,4179.7,0.0908]
[1759222248078,2.39212422,4180.4,4179.8,14.5]
[1759222248275,7.06389504,4180.5,4179.9,0.0908]
[1759222248480,7.06389504,4180.5,4180.0,0.12]
[1759222248707,2.39207718,4180.5,4180.1,0.0908]
[1759222248907,4.79204866,4180.6,4180.2,0.0908]
[1759222249106,2.4,4180.7,4180.3,0.12]
[1759222249319,2.4,4180.7,4180.4,0.0908]
[1759222249497,2.4,4180.7,4180.5,0.0908]
[1759222249685,0.71940634,4181.0,4180.6,0.02392001]
[1759222249888,2.39169426,4182.9,4180.9,0.1192]
[1759222249889,0.1192,4181.6,4180.9,0.1192]
[1759222250079,0.1192,4181.6,4181.0,0.0908]
[1759222250283,2.51066695,4181.6,4181.0,14.5908]
[1759222250507,2.4,4181.5,4181.0,14.5908]
[1759222250735,2.4,4181.5,4181.1,0.0908]
[1759222251243,2.4,4181.5,4180.9,0.21]
[1759222251406,2.4,4181.5,4181.0,14.5]
[1759222251602,2.4,4181.5,4181.1,0.0908]
[1759222251814,2.4,4181.5,4181.2,0.0908]
[1759222252420,2.4,4181.5,4181.2,14.5908]
[1759222253035,2.4,4181.5,4181.2,14.5]
[1759222253422,4.79151916,4181.5,4181.2,14.5]
[1759222253828,2.4,4181.5,4181.2,14.5]
[1759222254622,4.79149783,4181.5,4181.2,14.5]
[1759222255341,5.12091786,4181.4,4181.2,14.5]
[1759222255538,7.51247261,4181.4,4181.2,14.5]
[1759222255841,7.51247261,4181.4,4181.0,0.002]
[1759222255842,2.39171509,4181.1,4181.0,0.002]
[1759222256140,7.06353295,4181.1,4181.0,0.002]
[1759222256339,4.67181786,4181.1,4181.0,0.002]
[1759222256639,7.06353295,4181.1,4181.0,0.002]
[1759222257742,4.67181786,4181.1,4181.0,0.002]
[1759222257946,0.001,4181.6,4181.0,0.002]
[1759222258175,0.001,4181.6,4181.2,2.39163588]
[1759222258328,0.001,4181.6,4181.5,2.5106863]
[1759222258778,0.001,4181.6,4181.5,17.1014863]
[1759222259834,0.001,4181.6,4181.5,14.71]